[Event "Titled Tuesday Blitz June 13 Late 2023"]
[White "Kovalev, Vladislav"]
[Black "Timerkhanov, Alexander"]
[WhiteFideId "13504398"]
[BlackFideId "24177938"]
[WhiteElo "2555"]
[BlackElo "2278"]
[Result "1-0"]
[Round "3"]
[TimeControl "180+2"]
[Date "2023.06.13"]
[WhiteClock "0:00:15"]
[BlackClock "0:00:00"]
[Board "24"]

1. e4 {[%clk 0:02:58]}  c5 {[%clk 0:02:59]} 2. Nf3 {[%clk 0:02:58]}  d6 {[%clk 0:02:59]} 3. Bb5+ {[%clk 0:02:59]}  Nd7 {[%clk 0:02:57]} 4. O-O {[%clk 0:02:58]}  a6 {[%clk 0:02:56]} 5. Bd3 {[%clk 0:02:59]}  Ngf6 {[%clk 0:02:55]} 6. c3 {[%clk 0:02:59]}  b5 {[%clk 0:02:52]} 7. a4 {[%clk 0:02:59]}  c4 {[%clk 0:02:50]} 8. Be2 {[%clk 0:02:59]}  Bb7 {[%clk 0:02:51]} 9. axb5 {[%clk 0:02:58]}  axb5 {[%clk 0:02:51]} 10. Rxa8 {[%clk 0:02:59]}  Qxa8 {[%clk 0:02:51]} 11. Na3 {[%clk 0:03:00]}  Bc6 {[%clk 0:02:18]} 12. Nd4 {[%clk 0:02:57]}  Nxe4 {[%clk 0:02:16]} 13. Naxb5 {[%clk 0:02:44]}  Bxb5 {[%clk 0:02:10]} 14. Nxb5 {[%clk 0:02:44]}  Qc6 {[%clk 0:02:09]} 15. Qa4 {[%clk 0:02:32]}  d5 {[%clk 0:01:41]} 16. d4 {[%clk 0:00:52]}  cxd3 {[%clk 0:01:30]} 17. Bxd3 {[%clk 0:00:52]}  Nec5 {[%clk 0:01:30]} 18. Qc2 {[%clk 0:00:46]}  Nxd3 {[%clk 0:01:29]} 19. Qxd3 {[%clk 0:00:47]}  e6 {[%clk 0:01:29]} 20. Bf4 {[%clk 0:00:46]}  Be7 {[%clk 0:01:16]} 21. Nc7+ {[%clk 0:00:45]}  Kf8 {[%clk 0:01:13]} 22. Ra1 {[%clk 0:00:43]}  Bd8 {[%clk 0:01:02]} 23. Ra8 {[%clk 0:00:31]}  Ke7 {[%clk 0:01:02]} 24. Qg3 {[%clk 0:00:31]}  Nf6 {[%clk 0:00:52]} 25. Ra7 {[%clk 0:00:29]}  Kf8 {[%clk 0:00:38]} 26. Bd6+ {[%clk 0:00:29]}  Kg8 {[%clk 0:00:38]} 27. Ra8 {[%clk 0:00:29]}  Qd7 {[%clk 0:00:35]} 28. Be5 {[%clk 0:00:28]}  Nh5 {[%clk 0:00:18]} 29. Qg4 {[%clk 0:00:16]}  f6 {[%clk 0:00:13]} 30. Qxe6+ {[%clk 0:00:13]}  Qxe6 {[%clk 0:00:12]} 31. Nxe6 {[%clk 0:00:13]}  Kf7 {[%clk 0:00:10]} 32. Nxd8+ {[%clk 0:00:14]}  Kg6 {[%clk 0:00:10]} 33. Bc7 {[%clk 0:00:14]}  f5 {[%clk 0:00:08]} 34. g3 {[%clk 0:00:14]}  Nf6 {[%clk 0:00:08]} 35. Ra6 {[%clk 0:00:14]}  Re8 {[%clk 0:00:07]} 36. Ne6 {[%clk 0:00:15]}  Kf7 {[%clk 0:00:05]} 37. Ng5+ {[%clk 0:00:14]}  Kg6 {[%clk 0:00:05]} 38. Nf3 {[%clk 0:00:15]}  Kf7 {[%clk 0:00:04]} 39. Be5 {[%clk 0:00:15]}  Ne4 {[%clk 0:00:00]} 40. Ra7+ {[%clk 0:00:15]} 1-0


[Site "https://www.chess.com"]

[Event "Titled Tuesday Blitz June 13 Late 2023"]
[White "Sun, Rick"]
[Black "Elsa167"]
[WhiteFideId "30909481"]
[WhiteElo "2169"]
[BlackElo "2885"]
[Result "0-1"]
[Round "3"]
[TimeControl "180+2"]
[Date "2023.06.13"]
[WhiteClock "0:00:00"]
[BlackClock "0:00:25"]
[Board "28"]

1. d4 {[%clk 0:03:00]}  Nf6 {[%clk 0:02:59]} 2. Nc3 {[%clk 0:03:01]}  e6 {[%clk 0:03:00]} 3. e4 {[%clk 0:03:00]}  d5 {[%clk 0:03:01]} 4. exd5 {[%clk 0:03:01]}  exd5 {[%clk 0:03:00]} 5. Bd3 {[%clk 0:03:02]}  c6 {[%clk 0:02:57]} 6. Bg5 {[%clk 0:03:02]}  Bd6 {[%clk 0:02:56]} 7. Nge2 {[%clk 0:03:01]}  O-O {[%clk 0:02:56]} 8. Qd2 {[%clk 0:03:01]}  Re8 {[%clk 0:02:54]} 9. h4 {[%clk 0:02:59]}  b5 {[%clk 0:02:51]} 10. h5 {[%clk 0:02:57]}  h6 {[%clk 0:02:42]} 11. Bh4 {[%clk 0:02:41]}  b4 {[%clk 0:02:40]} 12. Nd1 {[%clk 0:02:39]}  Be7 {[%clk 0:02:19]} 13. Ne3 {[%clk 0:02:24]}  a5 {[%clk 0:02:10]} 14. Ng3 {[%clk 0:02:02]}  Ng4 {[%clk 0:01:53]} 15. Bxe7 {[%clk 0:01:21]}  Qxe7 {[%clk 0:01:54]} 16. Nf1 {[%clk 0:01:18]}  Ba6 {[%clk 0:01:31]} 17. O-O-O {[%clk 0:01:09]}  Nxe3 {[%clk 0:01:30]} 18. Nxe3 {[%clk 0:01:04]}  Bxd3 {[%clk 0:01:29]} 19. Qxd3 {[%clk 0:01:05]}  Nd7 {[%clk 0:01:23]} 20. Rh3 {[%clk 0:00:59]}  Nf6 {[%clk 0:01:20]} 21. Rdh1 {[%clk 0:00:54]}  Qe4 {[%clk 0:01:17]} 22. Qd2 {[%clk 0:00:49]}  Qe6 {[%clk 0:01:02]} 23. Rf3 {[%clk 0:00:44]}  Ne4 {[%clk 0:01:02]} 24. Qd3 {[%clk 0:00:42]}  a4 {[%clk 0:01:00]} 25. Rg1 {[%clk 0:00:30]}  a3 {[%clk 0:00:57]} 26. b3 {[%clk 0:00:29]}  Nc3 {[%clk 0:00:58]} 27. g4 {[%clk 0:00:29]}  Nxa2+ {[%clk 0:00:56]} 28. Kb1 {[%clk 0:00:29]}  Nc3+ {[%clk 0:00:57]} 29. Ka1 {[%clk 0:00:29]}  Qe4 {[%clk 0:00:58]} 30. Qxe4 {[%clk 0:00:23]}  Nxe4 {[%clk 0:00:53]} 31. Nf5 {[%clk 0:00:20]}  Re6 {[%clk 0:00:50]} 32. Rf4 {[%clk 0:00:17]}  Rae8 {[%clk 0:00:49]} 33. g5 {[%clk 0:00:09]}  Nxg5 {[%clk 0:00:38]} 34. Rfg4 {[%clk 0:00:05]}  Re1+ {[%clk 0:00:36]} 35. Ka2 {[%clk 0:00:04]}  Rxg1 {[%clk 0:00:30]} 36. Rxg1 {[%clk 0:00:04]}  Re2 {[%clk 0:00:31]} 37. Rg2 {[%clk 0:00:01]}  Rxc2+ {[%clk 0:00:30]} 38. Kb1 {[%clk 0:00:02]}  Rb2+ {[%clk 0:00:29]} 39. Kc1 {[%clk 0:00:02]}  Kf8 {[%clk 0:00:25]} 40. f4 {[%clk 0:00:01]}  Rxg2 {[%clk 0:00:25]} 41. fxg5 {[%clk 0:00:00]}  a2 {[%clk 0:00:25]} 0-1


[Site "https://www.chess.com"]

[Event "Titled Tuesday Blitz June 13 Late 2023"]
[White "Mekhitarian, Krikor Sevag"]
[Black "Zochowski, Kacper"]
[WhiteFideId "2107660"]
[BlackFideId "1125494"]
[WhiteElo "2604"]
[BlackElo "2235"]
[Result "0-1"]
[Round "3"]
[TimeControl "180+2"]
[Date "2023.06.13"]
[WhiteClock "0:00:02"]
[BlackClock "0:00:32"]
[Board "29"]

1. Nf3 {[%clk 0:03:00]}  d6 {[%clk 0:02:50]} 2. d4 {[%clk 0:02:59]}  Nd7 {[%clk 0:02:49]} 3. e4 {[%clk 0:02:56]}  e5 {[%clk 0:02:49]} 4. Nc3 {[%clk 0:02:57]}  Ngf6 {[%clk 0:02:49]} 5. Bc4 {[%clk 0:02:57]}  Be7 {[%clk 0:02:49]} 6. O-O {[%clk 0:02:56]}  O-O {[%clk 0:02:50]} 7. Re1 {[%clk 0:02:57]}  c6 {[%clk 0:02:50]} 8. a4 {[%clk 0:02:58]}  Qc7 {[%clk 0:02:50]} 9. h3 {[%clk 0:02:52]}  h6 {[%clk 0:02:42]} 10. Be3 {[%clk 0:02:52]}  b6 {[%clk 0:02:43]} 11. Qd2 {[%clk 0:02:33]}  a6 {[%clk 0:02:39]} 12. b4 {[%clk 0:01:54]}  Bb7 {[%clk 0:02:33]} 13. Bb3 {[%clk 0:01:54]}  c5 {[%clk 0:02:25]} 14. bxc5 {[%clk 0:01:43]}  bxc5 {[%clk 0:02:24]} 15. d5 {[%clk 0:01:21]}  c4 {[%clk 0:02:16]} 16. Ba2 {[%clk 0:01:21]}  Nc5 {[%clk 0:02:08]} 17. Bxc5 {[%clk 0:01:16]}  Qxc5 {[%clk 0:02:08]} 18. Qe2 {[%clk 0:01:17]}  Rac8 {[%clk 0:02:06]} 19. Rab1 {[%clk 0:01:15]}  Rc7 {[%clk 0:02:06]} 20. Nd2 {[%clk 0:01:13]}  Qa3 {[%clk 0:02:02]} 21. Qe3 {[%clk 0:00:41]}  Rfc8 {[%clk 0:01:58]} 22. Ra1 {[%clk 0:00:37]}  Qb2 {[%clk 0:01:49]} 23. Reb1 {[%clk 0:00:24]}  Qxc2 {[%clk 0:01:49]} 24. Rc1 {[%clk 0:00:25]}  Qd3 {[%clk 0:01:50]} 25. Qe1 {[%clk 0:00:19]}  Nd7 {[%clk 0:01:44]} 26. Bb1 {[%clk 0:00:19]}  Qd4 {[%clk 0:01:44]} 27. Nf3 {[%clk 0:00:19]}  Qa7 {[%clk 0:01:42]} 28. Bc2 {[%clk 0:00:16]}  Nc5 {[%clk 0:01:42]} 29. Rd1 {[%clk 0:00:15]}  Qb6 {[%clk 0:01:31]} 30. a5 {[%clk 0:00:14]}  Qb2 {[%clk 0:01:28]} 31. Rdc1 {[%clk 0:00:08]}  Nb3 {[%clk 0:01:23]} 32. Rab1 {[%clk 0:00:07]}  Qa3 {[%clk 0:01:18]} 33. Rd1 {[%clk 0:00:07]}  Qxa5 {[%clk 0:01:15]} 34. Ne2 {[%clk 0:00:05]}  Qxe1+ {[%clk 0:00:54]} 35. Rxe1 {[%clk 0:00:05]}  Nc5 {[%clk 0:00:42]} 36. Nc3 {[%clk 0:00:05]}  Bg5 {[%clk 0:00:39]} 37. h4 {[%clk 0:00:04]}  Bf6 {[%clk 0:00:36]} 38. g3 {[%clk 0:00:04]}  Nb3 {[%clk 0:00:35]} 39. Ne2 {[%clk 0:00:01]}  Nd4 {[%clk 0:00:33]} 40. Nexd4 {[%clk 0:00:01]}  exd4 {[%clk 0:00:34]} 41. Ba4 {[%clk 0:00:01]}  d3 {[%clk 0:00:33]} 42. Bc6 {[%clk 0:00:01]}  Bxc6 {[%clk 0:00:33]} 43. dxc6 {[%clk 0:00:02]}  Rxc6 {[%clk 0:00:33]} 44. Red1 {[%clk 0:00:03]}  c3 {[%clk 0:00:32]} 45. Rxd3 {[%clk 0:00:02]}  c2 {[%clk 0:00:32]} 0-1


[Site "https://www.chess.com"]

[Event "Titled Tuesday Blitz June 13 Late 2023"]
[White "Wizard_of_Odds"]
[Black "Holt, Conrad"]
[BlackFideId "2034387"]
[WhiteElo "2472"]
[BlackElo "2592"]
[Result "0-1"]
[Round "3"]
[TimeControl "180+2"]
[Date "2023.06.13"]
[WhiteClock "0:00:00"]
[BlackClock "0:00:13"]
[Board "31"]

1. d4 {[%clk 0:02:59]}  d5 {[%clk 0:03:00]} 2. c4 {[%clk 0:02:59]}  c6 {[%clk 0:03:00]} 3. Nf3 {[%clk 0:02:59]}  Nf6 {[%clk 0:03:00]} 4. e3 {[%clk 0:02:59]}  Bf5 {[%clk 0:03:00]} 5. Nc3 {[%clk 0:02:59]}  e6 {[%clk 0:03:00]} 6. Nh4 {[%clk 0:02:59]}  Bg6 {[%clk 0:03:00]} 7. Be2 {[%clk 0:02:58]}  Nbd7 {[%clk 0:03:01]} 8. Bd2 {[%clk 0:02:57]}  Ne4 {[%clk 0:02:55]} 9. Nxg6 {[%clk 0:02:55]}  hxg6 {[%clk 0:02:55]} 10. Nxe4 {[%clk 0:02:55]}  dxe4 {[%clk 0:02:55]} 11. Qc2 {[%clk 0:02:48]}  f5 {[%clk 0:02:51]} 12. O-O-O {[%clk 0:02:47]}  Qc7 {[%clk 0:02:46]} 13. h3 {[%clk 0:02:47]}  c5 {[%clk 0:02:39]} 14. Bc3 {[%clk 0:02:41]}  cxd4 {[%clk 0:02:35]} 15. Bxd4 {[%clk 0:02:40]}  Kf7 {[%clk 0:02:26]} 16. g4 {[%clk 0:02:38]}  Bc5 {[%clk 0:02:14]} 17. Bc3 {[%clk 0:02:37]}  Rad8 {[%clk 0:02:12]} 18. gxf5 {[%clk 0:02:24]}  gxf5 {[%clk 0:02:09]} 19. b4 {[%clk 0:02:24]}  Be7 {[%clk 0:02:07]} 20. Rhg1 {[%clk 0:02:16]}  Bf6 {[%clk 0:02:06]} 21. c5 {[%clk 0:02:04]}  a5 {[%clk 0:02:04]} 22. a3 {[%clk 0:02:01]}  axb4 {[%clk 0:02:04]} 23. axb4 {[%clk 0:02:02]}  Rxh3 {[%clk 0:01:56]} 24. Bc4 {[%clk 0:02:02]}  Ne5 {[%clk 0:01:45]} 25. Rxd8 {[%clk 0:01:51]}  Qxd8 {[%clk 0:01:30]} 26. Bxe5 {[%clk 0:01:45]}  Bxe5 {[%clk 0:01:29]} 27. Qa2 {[%clk 0:01:41]}  Qe7 {[%clk 0:00:51]} 28. Rd1 {[%clk 0:01:33]}  Rh8 {[%clk 0:00:42]} 29. Qa7 {[%clk 0:01:13]}  Kf6 {[%clk 0:00:36]} 30. Qb6 {[%clk 0:01:11]}  Ra8 {[%clk 0:00:34]} 31. Kd2 {[%clk 0:01:06]}  Qd8+ {[%clk 0:00:28]} 32. Ke2 {[%clk 0:00:58]}  Qxb6 {[%clk 0:00:23]} 33. cxb6 {[%clk 0:00:59]}  Ra4 {[%clk 0:00:20]} 34. Rb1 {[%clk 0:00:59]}  Bd6 {[%clk 0:00:20]} 35. Rd1 {[%clk 0:00:46]}  Ke7 {[%clk 0:00:18]} 36. Rg1 {[%clk 0:00:43]}  Be5 {[%clk 0:00:17]} 37. Rb1 {[%clk 0:00:42]}  Bd6 {[%clk 0:00:14]} 38. Rg1 {[%clk 0:00:41]}  Kf6 {[%clk 0:00:14]} 39. Rd1 {[%clk 0:00:40]}  Be7 {[%clk 0:00:13]} 40. Rb1 {[%clk 0:00:20]}  Bxb4 {[%clk 0:00:10]} 41. Bb5 {[%clk 0:00:17]}  Ra2+ {[%clk 0:00:10]} 42. Kf1 {[%clk 0:00:18]}  Bc5 {[%clk 0:00:09]} 43. Bd7 {[%clk 0:00:13]}  Ra6 {[%clk 0:00:09]} 44. Bc8 {[%clk 0:00:13]}  Rxb6 {[%clk 0:00:09]} 45. Rxb6 {[%clk 0:00:09]}  Bxb6 {[%clk 0:00:10]} 46. Bxb7 {[%clk 0:00:10]}  g5 {[%clk 0:00:11]} 47. Kg2 {[%clk 0:00:09]}  g4 {[%clk 0:00:11]} 48. Kg3 {[%clk 0:00:08]}  Ba5 {[%clk 0:00:11]} 49. Bc8 {[%clk 0:00:08]}  Be1 {[%clk 0:00:11]} 50. Kg2 {[%clk 0:00:09]}  e5 {[%clk 0:00:09]} 51. Bb7 {[%clk 0:00:09]}  Kg5 {[%clk 0:00:10]} 52. Bc6 {[%clk 0:00:09]}  Bb4 {[%clk 0:00:09]} 53. Bb7 {[%clk 0:00:09]}  Bc5 {[%clk 0:00:09]} 54. Bc6 {[%clk 0:00:09]}  f4 {[%clk 0:00:10]} 55. exf4+ {[%clk 0:00:07]}  Kxf4 {[%clk 0:00:11]} 56. Bb7 {[%clk 0:00:06]}  e3 {[%clk 0:00:06]} 57. fxe3+ {[%clk 0:00:06]}  Bxe3 {[%clk 0:00:07]} 58. Bd5 {[%clk 0:00:06]}  e4 {[%clk 0:00:06]} 59. Bc6 {[%clk 0:00:05]}  Bd2 {[%clk 0:00:06]} 60. Kf2 {[%clk 0:00:05]}  Ba5 {[%clk 0:00:06]} 61. Kg2 {[%clk 0:00:04]}  Bb6 {[%clk 0:00:06]} 62. Bb5 {[%clk 0:00:04]}  Bd8 {[%clk 0:00:07]} 63. Be2 {[%clk 0:00:04]}  Bh4 {[%clk 0:00:08]} 64. Bd1 {[%clk 0:00:04]}  Be7 {[%clk 0:00:08]} 65. Be2 {[%clk 0:00:04]}  Bd6 {[%clk 0:00:08]} 66. Bd1 {[%clk 0:00:05]}  g3 {[%clk 0:00:09]} 67. Bb3 {[%clk 0:00:04]}  Ke3 {[%clk 0:00:09]} 68. Bc4 {[%clk 0:00:04]}  Kd4 {[%clk 0:00:08]} 69. Ba6 {[%clk 0:00:04]}  Ke3 {[%clk 0:00:09]} 70. Kf1 {[%clk 0:00:04]}  Kf3 {[%clk 0:00:09]} 71. Be2+ {[%clk 0:00:05]}  Ke3 {[%clk 0:00:09]} 72. Bc4 {[%clk 0:00:05]}  Kd2 {[%clk 0:00:09]} 73. Bb5 {[%clk 0:00:04]}  Bc7 {[%clk 0:00:09]} 74. Kg2 {[%clk 0:00:04]}  Ke1 {[%clk 0:00:09]} 75. Bc6 {[%clk 0:00:03]}  e3 {[%clk 0:00:09]} 76. Bb5 {[%clk 0:00:04]}  Bd6 {[%clk 0:00:09]} 77. Kf3 {[%clk 0:00:04]}  Bf4 {[%clk 0:00:09]} 78. Bc4 {[%clk 0:00:04]}  Kd2 {[%clk 0:00:09]} 79. Bf1 {[%clk 0:00:04]}  Ke1 {[%clk 0:00:09]} 80. Kg2 {[%clk 0:00:04]}  e2 {[%clk 0:00:09]} 81. Bxe2 {[%clk 0:00:05]}  Kxe2 {[%clk 0:00:10]} 82. Kh1 {[%clk 0:00:05]}  Be5 {[%clk 0:00:10]} 83. Kg2 {[%clk 0:00:05]}  Bd6 {[%clk 0:00:10]} 84. Kh1 {[%clk 0:00:06]}  Kf3 {[%clk 0:00:11]} 85. Kg1 {[%clk 0:00:06]}  Bc5+ {[%clk 0:00:12]} 86. Kh1 {[%clk 0:00:07]}  g2+ {[%clk 0:00:13]} 87. Kh2 {[%clk 0:00:00]}  g1=Q+ {[%clk 0:00:13]} 0-1


[Site "https://www.chess.com"]

[Event "Titled Tuesday Blitz June 13 Late 2023"]
[White "Hansen, Eric"]
[Black "Buchenau, Frank"]
[WhiteFideId "2606771"]
[BlackFideId "4604350"]
[WhiteElo "2561"]
[BlackElo "2157"]
[Result "1-0"]
[Round "3"]
[TimeControl "180+2"]
[Date "2023.06.13"]
[WhiteClock "0:00:35"]
[BlackClock "0:00:00"]
[Board "33"]

1. d4 {[%clk 0:03:00]}  e6 {[%clk 0:02:59]} 2. c4 {[%clk 0:03:00]}  Nf6 {[%clk 0:03:00]} 3. Nc3 {[%clk 0:03:01]}  Bb4 {[%clk 0:03:00]} 4. e3 {[%clk 0:03:01]}  O-O {[%clk 0:02:59]} 5. Bd2 {[%clk 0:03:01]}  b6 {[%clk 0:02:59]} 6. Nge2 {[%clk 0:02:59]}  Bb7 {[%clk 0:02:58]} 7. a3 {[%clk 0:03:00]}  Be7 {[%clk 0:02:58]} 8. Nf4 {[%clk 0:02:49]}  c5 {[%clk 0:02:54]} 9. d5 {[%clk 0:02:45]}  e5 {[%clk 0:02:49]} 10. Nh5 {[%clk 0:02:43]}  d6 {[%clk 0:02:46]} 11. g4 {[%clk 0:02:40]}  Nxh5 {[%clk 0:02:44]} 12. gxh5 {[%clk 0:02:39]}  Nd7 {[%clk 0:02:40]} 13. Rg1 {[%clk 0:02:34]}  f5 {[%clk 0:02:36]} 14. Qf3 {[%clk 0:02:28]}  e4 {[%clk 0:02:30]} 15. Qg3 {[%clk 0:02:23]}  Bf6 {[%clk 0:02:30]} 16. Qxd6 {[%clk 0:02:12]}  Ne5 {[%clk 0:02:27]} 17. Qxd8 {[%clk 0:02:00]}  Nf3+ {[%clk 0:02:27]} 18. Kd1 {[%clk 0:02:01]}  Raxd8 {[%clk 0:02:26]} 19. Rg2 {[%clk 0:02:02]}  b5 {[%clk 0:02:00]} 20. cxb5 {[%clk 0:01:52]}  Nxd2 {[%clk 0:01:49]} 21. Kxd2 {[%clk 0:01:51]}  Bxd5 {[%clk 0:01:35]} 22. Nxd5 {[%clk 0:01:51]}  Rxd5+ {[%clk 0:01:36]} 23. Kc2 {[%clk 0:01:52]}  Kh8 {[%clk 0:01:31]} 24. Bc4 {[%clk 0:01:51]}  Rd6 {[%clk 0:01:30]} 25. Rf1 {[%clk 0:01:51]}  Rfd8 {[%clk 0:01:25]} 26. f3 {[%clk 0:01:52]}  Re8 {[%clk 0:01:03]} 27. b3 {[%clk 0:01:40]}  f4 {[%clk 0:00:54]} 28. fxe4 {[%clk 0:01:35]}  fxe3 {[%clk 0:00:54]} 29. Bd5 {[%clk 0:01:34]}  h6 {[%clk 0:00:31]} 30. Kd3 {[%clk 0:01:32]}  Re5 {[%clk 0:00:30]} 31. Kc4 {[%clk 0:01:25]}  Rxh5 {[%clk 0:00:28]} 32. Re2 {[%clk 0:01:19]}  Rd8 {[%clk 0:00:18]} 33. Rf3 {[%clk 0:01:14]}  Bd4 {[%clk 0:00:17]} 34. b4 {[%clk 0:01:14]}  Rc8 {[%clk 0:00:16]} 35. Be6 {[%clk 0:01:14]}  Rc7 {[%clk 0:00:15]} 36. Rf8+ {[%clk 0:01:13]}  Kh7 {[%clk 0:00:15]} 37. Rc8 {[%clk 0:01:05]}  Rxc8 {[%clk 0:00:12]} 38. Bxc8 {[%clk 0:01:06]}  Be5 {[%clk 0:00:07]} 39. bxc5 {[%clk 0:01:02]}  Bxh2 {[%clk 0:00:06]} 40. Be6 {[%clk 0:00:50]}  Bf4 {[%clk 0:00:05]} 41. a4 {[%clk 0:00:39]}  Rh1 {[%clk 0:00:05]} 42. a5 {[%clk 0:00:39]}  Rc1+ {[%clk 0:00:05]} 43. Kd5 {[%clk 0:00:40]}  Rd1+ {[%clk 0:00:05]} 44. Kc6 {[%clk 0:00:40]}  Rd2 {[%clk 0:00:05]} 45. Rxd2 {[%clk 0:00:35]}  exd2 {[%clk 0:00:05]} 46. Bg4 {[%clk 0:00:36]}  Kg6 {[%clk 0:00:01]} 47. b6 {[%clk 0:00:36]}  axb6 {[%clk 0:00:01]} 48. a6 {[%clk 0:00:36]}  h5 {[%clk 0:00:00]} 49. Bd1 {[%clk 0:00:35]} 1-0


[Site "https://www.chess.com"]

[Event "Titled Tuesday Blitz June 13 Late 2023"]
[White "Kabilov, Amin"]
[Black "Jumabayev, Rinat"]
[WhiteFideId "14700859"]
[BlackFideId "13702661"]
[WhiteElo "2110"]
[BlackElo "2561"]
[Result "0-1"]
[Round "3"]
[TimeControl "180+2"]
[Date "2023.06.13"]
[WhiteClock "0:00:07"]
[BlackClock "0:00:50"]
[Board "34"]

1. d4 {[%clk 0:03:00]}  Nf6 {[%clk 0:02:53]} 2. c4 {[%clk 0:03:00]}  e6 {[%clk 0:02:54]} 3. Nf3 {[%clk 0:02:59]}  Bb4+ {[%clk 0:02:54]} 4. Bd2 {[%clk 0:02:56]}  a5 {[%clk 0:02:54]} 5. a3 {[%clk 0:02:52]}  Be7 {[%clk 0:02:52]} 6. Nc3 {[%clk 0:02:52]}  d5 {[%clk 0:02:53]} 7. cxd5 {[%clk 0:01:59]}  exd5 {[%clk 0:02:54]} 8. Bg5 {[%clk 0:01:59]}  c6 {[%clk 0:02:48]} 9. e3 {[%clk 0:01:59]}  Bf5 {[%clk 0:02:42]} 10. Bd3 {[%clk 0:01:59]}  Bxd3 {[%clk 0:02:42]} 11. Qxd3 {[%clk 0:02:00]}  Nbd7 {[%clk 0:02:42]} 12. O-O {[%clk 0:01:59]}  O-O {[%clk 0:02:42]} 13. Rfe1 {[%clk 0:01:52]}  Re8 {[%clk 0:02:43]} 14. Rad1 {[%clk 0:01:39]}  a4 {[%clk 0:02:37]} 15. e4 {[%clk 0:01:37]}  dxe4 {[%clk 0:02:31]} 16. Nxe4 {[%clk 0:01:36]}  h6 {[%clk 0:02:30]} 17. Nxf6+ {[%clk 0:01:31]}  Nxf6 {[%clk 0:02:29]} 18. Bh4 {[%clk 0:01:28]}  Nd5 {[%clk 0:02:24]} 19. Bg3 {[%clk 0:01:22]}  Qb6 {[%clk 0:02:16]} 20. Re2 {[%clk 0:01:18]}  Bf6 {[%clk 0:02:06]} 21. Rde1 {[%clk 0:01:15]}  Rxe2 {[%clk 0:02:05]} 22. Rxe2 {[%clk 0:01:15]}  Rd8 {[%clk 0:02:05]} 23. h3 {[%clk 0:01:14]}  g6 {[%clk 0:01:22]} 24. Ne5 {[%clk 0:01:07]}  Kg7 {[%clk 0:01:19]} 25. Rd2 {[%clk 0:00:54]}  h5 {[%clk 0:01:18]} 26. Qe4 {[%clk 0:00:31]}  Ne7 {[%clk 0:01:10]} 27. Bh4 {[%clk 0:00:18]}  Bxh4 {[%clk 0:01:06]} 28. Qxh4 {[%clk 0:00:18]}  Nf5 {[%clk 0:01:06]} 29. Qf4 {[%clk 0:00:13]}  Rxd4 {[%clk 0:01:04]} 30. Rxd4 {[%clk 0:00:14]}  Qxd4 {[%clk 0:01:05]} 31. Qxd4 {[%clk 0:00:11]}  Nxd4 {[%clk 0:01:06]} 32. Nc4 {[%clk 0:00:10]}  b5 {[%clk 0:01:04]} 33. Ne3 {[%clk 0:00:09]}  Kf6 {[%clk 0:01:04]} 34. Kf1 {[%clk 0:00:10]}  Ke5 {[%clk 0:00:59]} 35. Ke1 {[%clk 0:00:10]}  f5 {[%clk 0:01:00]} 36. Kd2 {[%clk 0:00:10]}  f4 {[%clk 0:01:01]} 37. Nd1 {[%clk 0:00:10]}  g5 {[%clk 0:00:59]} 38. Kd3 {[%clk 0:00:09]}  g4 {[%clk 0:00:47]} 39. hxg4 {[%clk 0:00:09]}  hxg4 {[%clk 0:00:48]} 40. Nc3 {[%clk 0:00:10]}  c5 {[%clk 0:00:48]} 41. Ne4 {[%clk 0:00:10]}  c4+ {[%clk 0:00:49]} 42. Kc3 {[%clk 0:00:07]}  Kxe4 {[%clk 0:00:50]} 0-1


[Site "https://www.chess.com"]

[Event "Titled Tuesday Blitz June 13 Late 2023"]
[White "Prydun, Andriy"]
[Black "Moroni, Luca Jr"]
[WhiteFideId "14145898"]
[BlackFideId "865834"]
[WhiteElo "2164"]
[BlackElo "2569"]
[Result "0-1"]
[Round "3"]
[TimeControl "180+2"]
[Date "2023.06.13"]
[WhiteClock "0:00:00"]
[BlackClock "0:00:58"]
[Board "35"]

1. e4 {[%clk 0:03:00]}  g6 {[%clk 0:03:00]} 2. d4 {[%clk 0:02:59]}  Bg7 {[%clk 0:03:01]} 3. Nc3 {[%clk 0:02:59]}  a6 {[%clk 0:03:02]} 4. a4 {[%clk 0:02:59]}  d6 {[%clk 0:03:01]} 5. g3 {[%clk 0:02:59]}  Nc6 {[%clk 0:02:58]} 6. Be3 {[%clk 0:02:58]}  e5 {[%clk 0:02:58]} 7. d5 {[%clk 0:02:56]}  Nce7 {[%clk 0:02:57]} 8. g4 {[%clk 0:02:54]}  f5 {[%clk 0:02:38]} 9. gxf5 {[%clk 0:02:53]}  gxf5 {[%clk 0:02:39]} 10. Qh5+ {[%clk 0:02:52]}  Kf8 {[%clk 0:02:37]} 11. exf5 {[%clk 0:02:52]}  Nf6 {[%clk 0:02:37]} 12. Qe2 {[%clk 0:02:50]}  Bxf5 {[%clk 0:02:34]} 13. Bg2 {[%clk 0:02:48]}  Qd7 {[%clk 0:02:34]} 14. O-O-O {[%clk 0:02:41]}  b5 {[%clk 0:02:33]} 15. axb5 {[%clk 0:01:13]}  axb5 {[%clk 0:02:34]} 16. Qxb5 {[%clk 0:01:10]}  Ra1+ {[%clk 0:02:32]} 17. Kd2 {[%clk 0:01:09]}  Rxd1+ {[%clk 0:02:32]} 18. Kxd1 {[%clk 0:01:09]}  Qxb5 {[%clk 0:02:29]} 19. Nxb5 {[%clk 0:01:10]}  Nexd5 {[%clk 0:02:29]} 20. c4 {[%clk 0:01:06]}  Nxe3+ {[%clk 0:02:26]} 21. fxe3 {[%clk 0:01:07]}  Ng4 {[%clk 0:02:26]} 22. Ke2 {[%clk 0:01:04]}  Bh6 {[%clk 0:02:19]} 23. Nxc7 {[%clk 0:00:52]}  Nxe3 {[%clk 0:02:12]} 24. Bc6 {[%clk 0:00:41]}  Rg8 {[%clk 0:02:06]} 25. b4 {[%clk 0:00:39]}  Rg4 {[%clk 0:01:58]} 26. b5 {[%clk 0:00:37]}  Rxc4 {[%clk 0:01:55]} 27. Kf2 {[%clk 0:00:14]}  Ng4+ {[%clk 0:01:45]} 28. Kg3 {[%clk 0:00:13]}  Rc3+ {[%clk 0:01:40]} 29. Nf3 {[%clk 0:00:09]}  e4 {[%clk 0:01:36]} 30. Rf1 {[%clk 0:00:09]}  Ne5 {[%clk 0:01:31]} 31. Nd5 {[%clk 0:00:05]}  Rxf3+ {[%clk 0:01:26]} 32. Rxf3 {[%clk 0:00:05]}  exf3 {[%clk 0:01:27]} 33. Ba8 {[%clk 0:00:02]}  Be4 {[%clk 0:01:08]} 34. b6 {[%clk 0:00:02]}  Nd7 {[%clk 0:01:00]} 35. Bc6 {[%clk 0:00:01]}  Nxb6 {[%clk 0:00:58]} 36. Nxb6 {[%clk 0:00:01]}  Bxc6 {[%clk 0:00:59]} 37. Nc4 {[%clk 0:00:00]}  Ke7 {[%clk 0:00:58]} 0-1


[Site "https://www.chess.com"]

[Event "Titled Tuesday Blitz June 13 Late 2023"]
[White "Talibov, Shiroghlan"]
[Black "FuenfgegenWilly"]
[WhiteFideId "13429078"]
[WhiteElo "2274"]
[BlackElo "2402"]
[Result "1-0"]
[Round "3"]
[TimeControl "180+2"]
[Date "2023.06.13"]
[WhiteClock "0:01:59"]
[BlackClock "0:01:25"]
[Board "36"]

1. c4 {[%clk 0:02:55]}  c5 {[%clk 0:02:57]} 2. Nc3 {[%clk 0:02:52]}  Nc6 {[%clk 0:02:58]} 3. Nf3 {[%clk 0:02:51]}  e5 {[%clk 0:02:58]} 4. g3 {[%clk 0:02:45]}  d6 {[%clk 0:02:58]} 5. Bg2 {[%clk 0:02:44]}  g6 {[%clk 0:02:58]} 6. d3 {[%clk 0:02:43]}  Bg7 {[%clk 0:02:59]} 7. O-O {[%clk 0:02:44]}  Nge7 {[%clk 0:02:59]} 8. a3 {[%clk 0:02:43]}  a5 {[%clk 0:02:59]} 9. Ne1 {[%clk 0:02:43]}  O-O {[%clk 0:02:59]} 10. Nc2 {[%clk 0:02:43]}  Be6 {[%clk 0:03:00]} 11. Ne3 {[%clk 0:02:31]}  f5 {[%clk 0:02:27]} 12. Ned5 {[%clk 0:02:30]}  h6 {[%clk 0:02:27]} 13. f4 {[%clk 0:02:27]}  Kh7 {[%clk 0:02:19]} 14. Rb1 {[%clk 0:02:23]}  Nd4 {[%clk 0:02:12]} 15. e3 {[%clk 0:02:19]}  Ndc6 {[%clk 0:02:06]} 16. b4 {[%clk 0:02:18]}  axb4 {[%clk 0:01:59]} 17. axb4 {[%clk 0:02:17]}  Nxb4 {[%clk 0:01:57]} 18. Nxb4 {[%clk 0:02:16]}  cxb4 {[%clk 0:01:58]} 19. Nd5 {[%clk 0:02:13]}  Bxd5 {[%clk 0:01:41]} 20. cxd5 {[%clk 0:02:12]}  Qb6 {[%clk 0:01:41]} 21. Bd2 {[%clk 0:02:10]}  exf4 {[%clk 0:01:36]} 22. Rxb4 {[%clk 0:02:07]}  Qa6 {[%clk 0:01:36]} 23. gxf4 {[%clk 0:02:03]}  Qxd3 {[%clk 0:01:34]} 24. Rxb7 {[%clk 0:02:02]}  Nxd5 {[%clk 0:01:27]} 25. Bxd5 {[%clk 0:02:00]}  Qxd5 {[%clk 0:01:25]} 26. Rxg7+ {[%clk 0:01:59]} 1-0


[Site "https://www.chess.com"]